Cogmind - Beta 11.1 @@@ ROGUE MODE // 2022.04.29 @ 13:48:09 Player: Olga Result: Destroyed by D-53 Grenadier with Mini Grenade Launcher Performance ------------- Evolutions (0) 0 Regions Visited (2) 400 Robots Destroyed (0) 0 Value Destroyed (0) 0 Prototype IDs (0) 0 Alien Tech Used (0) 0 Bonus (21) 21 TOTAL SCORE: 421 Bonus ------- Follower Combat Kills 21 Cogmind --------- Core Integrity 0/250 Matter 253/300 Energy 100/100 System Corruption 2% Temperature Cool (0) Movement Rolling (80) Location -10/Mines Parts ------- > --- POWER (1) -------- (None) > --- PROPULSION (2) --- Wheel > --- UTILITY (2) ------ (None) > --- WEAPON (2) ------- Light Assault Rifle > --- INVENTORY (5) ---- Light Treads Aluminum Leg Peak State ------------ > --- POWER ------------ Ion Engine > --- PROPULSION ------- Aluminum Leg Aluminum Leg > --- UTILITY ---------- Small Storage Unit Seismic Detector > --- WEAPON ----------- Medium Laser Assault Rifle > --- INVENTORY -------- Light Ion Engine Light Treads Light Treads Wheel Wheel Light Assault Rifle Light Assault Rifle [Rating: 7] Favorites ----------- Power Ion Engine Engine Ion Engine Propulsion Aluminum Leg Leg Aluminum Leg Wheel Wheel Flight Unit Flight Unit Utility Small Storage Unit Device Structural Scanner Storage Small Storage Unit Weapon Assault Rifle Energy Gun Medium Laser Ballistic Gun Assault Rifle Build | -11 -10 -10 ------- Run | Scr Mat Min Slots Evolved . | . . . Power . | . . . Propulsion . | . . . Utility . | . . . Weapon . | . . . Parts Attached 10 | . 1 9 Power 1 | . . 1 Engine 1 | . . 1 Core . | . . . Reactor . | . . . Propulsion 3 | . . 3 Treads . | . . . Leg . | . . . Wheel 2 | . . 2 Hover . | . . . Flight 1 | . . 1 Utility 2 | . 1 1 Device 2 | . 1 1 Storage . | . . . Processor . | . . . Hackware . | . . . Protection . | . . . Artifact . | . . . Weapon 4 | . . 4 Energy Gun . | . . . Energy Cannon . | . . . Ballistic Gun 4 | . . 4 Ballistic Cannon . | . . . Launcher . | . . . Special Weapon . | . . . Impact Weapon . | . . . Slashing Weapon . | . . . Piercing Weapon . | . . . Special Melee Weapon . | . . . Unidentified Prototypes . | . . . Parts Lost 6 | . . 6 Power 1 | . . 1 Propulsion 2 | . . 2 Utility 1 | . . 1 Weapon 2 | . . 2 Highest Loss Streak 6 | . . 6 To Critical Strikes . | . . . Average Slot Usage (%) 85 | . 98 79 Engine 11 | . 14 10 Leg 21 | . 28 18 Wheel 2 | . . 3 Flight 1 | . . 2 Device 11 | . 12 11 Storage 10 | . 14 9 Energy Gun 9 | . 14 7 Ballistic Gun 14 | . 14 14 Naked Turns 10 | . . 10 Heaviest Build 15 | 14 15 15 Greatest Support 20 | 20 20 20 Greatest Overweight (x) . | . . . Average Overweight (x) . | . . . Largest Inventory Capacity 8 | . 8 8 Average Capacity 7 | . 8 7 Most Carried 8 | . 8 8 Average Carried 6 | . 7 6 Final Capacity 8 | 8 8 5 Final Carried 8 | 6 8 2 Class Distribution -------------------- 100% | Mutant Dominant Class ---------------- Mutant | -10/Materials Mutant | -10/Mines Resources | -11 -10 -10 ----------- Run | Scr Mat Min Matter Collected 239 | 200 . 39 Remotely . | . . . Salvage Created . | . . . Parts . | . . . Haulers Intercepted . | . . . Recyclers Shooed . | . . . Parts Field Recycled . | . . . Retrieved Matter . | . . . Parts Self-Destructed . | . . . Prevented . | . . . Kills | -11 -10 -10 ------- Run | Scr Mat Min Combat Hostiles Destroyed . | . . . Classes Destroyed . | . . . Best Kill Streak . | . . . Combat Bots Only . | . . . Max Kills in Single Turn . | . . . Gunslinging . | . . . Exploded . | . . . Melee . | . . . Uniques/NPCs Destroyed . | . . . Combat | -11 -10 -10 -------- Run | Scr Mat Min Damage Taken 661 | . 14 647 Core 255 | . . 255 Absorbed by Shields . | . . . Core Remaining (%) 100 | 100 . . Volleys Fired 4 | . . 4 Largest 2 | . . 2 Hottest 40 | . . 40 Shots Fired 5 | . . 5 Gun 5 | . . 5 Cannon . | . . . Launcher . | . . . Special . | . . . Kinetic 5 | . . 5 Thermal . | . . . Explosive . | . . . Electromagnetic . | . . . Robot Hit Streak 2 | . . 2 Robot Miss Streak 2 | . . 2 Penetration Max . | . . . Secondary Targets . | . . . Shots Hit Robots 2 | . . 2 Core Hits . | . . . Critical Kills . | . . . Critical Parts Destroyed . | . . . Critical Strikes . | . . . Melee Attacks . | . . . Impact . | . . . Slashing . | . . . Piercing . | . . . Sneak Attacks . | . . . Combat Hostiles . | . . . Follow-up Attacks . | . . . Damage Inflicted 23 | . . 23 Guns 23 | . . 23 Cannons . | . . . Explosions . | . . . Melee . | . . . Ramming . | . . . Kinetic 23 | . . 23 Thermal . | . . . Explosive . | . . . Electromagnetic . | . . . Impact . | . . . Slashing . | . . . Piercing . | . . . Highest Corruption 2 | . . 2 Average Corruption 2 | . . 2 Corruption Purged . | . . . Corruption Blocked . | . . . Overload Shots . | . . . Overflow Damage . | . . . Projectiles . | . . . Explosions . | . . . Melee . | . . . Knockbacks . | . . . Impact . | . . . Kinetic . | . . . Secondary . | . . . Self-Inflicted Damage . | . . . Shots . | . . . Rammed . | . . . Targets Rammed . | . . . Kicked . | . . . Crushed . | . . . Highest Temperature 18 | . 9 18 Average Temperature 13 | . 9 18 Received Heat Transfer 67 | . 27 40 Siege Activations . | . . . Robots Corrupted . | . . . Combat Hostiles . | . . . Parts Fried . | . . . Impact Corruptions . | . . . Robots Melted . | . . . Combat Hostiles . | . . . Parts Melted . | . . . Heat Transferred . | . . . Parts Sabotaged . | . . . Parts Stolen . | . . . Parts Stripped . | . . . Power Chain Reactions . | . . . Missiles Intercepted . | . . . Alert | -11 -10 -10 ------- Run | Scr Mat Min Peak Influence 83 | . 7 83 Initial 2 | . . 2 Average 19 | . 2 27 Maximum Alert Level . | . . . Low Security (%) 100 | . 100 100 Level 1 . | . . . Level 2 . | . . . Level 3 . | . . . Level 4 . | . . . Level 5 . | . . . High Security . | . . . Max Security . | . . . Squads Dispatched . | . . . Investigation . | . . . Extermination . | . . . Reinforcement . | . . . Assault . | . . . Garrison . | . . . Intercept . | . . . Searches Triggered . | . . . Construction Impeded . | . . . Haulers Reinforced . | . . . Active Scanning Responses . | . . . Cargo Convoy Interrupts . | . . . Stealth | -11 -10 -10 --------- Run | Scr Mat Min Distress Signals 1 | . 1 . Communications Jammed . | . . . Distress Signals . | . . . Times Spotted 28 | . 4 24 Peak Tracking Total 19 | . 5 19 Tactical Retreats . | . . . Traps | -11 -10 -10 ------- Run | Scr Mat Min Traps Triggered . | . . . Indirectly . | . . . Trap Hack Attempts . | . . . Triggered . | . . . Disarmed . | . . . Reprogrammed . | . . . Reused . | . . . Traps Extracted . | . . . Installed . | . . . Triggered . | . . . Machines | -11 -10 -10 ---------- Run | Scr Mat Min Machines Disabled . | . . . Max in Single Turn . | . . . Machines Sabotaged . | . . . Garrisons Compromised . | . . . Overloaded Fab Kills . | . . . Hacking | -11 -10 -10 --------- Run | Scr Mat Min Machines Accessed 2 | . 2 . Terminals 2 | . 2 . Fabricators . | . . . Repair Stations . | . . . Recycling Units . | . . . Scanalyzers . | . . . Garrison Access . | . . . Total Hacks 7 | . 7 . Successful 4 | . 4 . Failed 3 | . 3 . Catastrophic . | . . . Database Lockouts . | . . . Manual 2 | . 2 . Terminals 7 | . 7 . Fabricators . | . . . Repair Stations . | . . . Recycling Units . | . . . Scanalyzers . | . . . Garrison Access . | . . . Terminal Hacks 4 | . 4 . Branch Access Points 1 | . 1 . Emergency Access Points 1 | . 1 . Locate Traps 1 | . 1 . Zone Layout 1 | . 1 . Fabricator Hacks . | . . . Repair Station Hacks . | . . . Recycling Unit Hacks . | . . . Scanalyzer . | . . . Garrison Access Hacks . | . . . Unauthorized Hacks . | . . . Terminals . | . . . Fabricators . | . . . Repair Stations . | . . . Recycling Units . | . . . Scanalyzers . | . . . Garrison Access . | . . . Data Cores Recovered . | . . . Used . | . . . Hacking Detections 2 | . 2 . Full Trace Events . | . . . Feedback Events . | . . . Feedback Blocked . | . . . Robot Schematics Acquired . | . . . Robots Built . | . . . Authchips . | . . . Time . | . . . Total Robot Build Rating . | . . . Part Schematics Acquired . | . . . Parts Built . | . . . Authchips . | . . . Time . | . . . Total Part Build Rating . | . . . Parts Repaired . | . . . Time . | . . . Parts Recycled . | . . . Recycled Matter . | . . . Retrieved Matter . | . . . Retrieved Components . | . . . Parts Scanalyzed . | . . . Part Schematics Acquired . | . . . Parts Damaged . | . . . Bothacking | -11 -10 -10 ------------ Run | Scr Mat Min Used RIF Installer . | . . . Robots Hacked . | . . . Non-combat . | . . . Combat . | . . . Robot Hacks Applied . | . . . Relay Couplers Released . | . . . Fabnet Peak Effective % . | . . . Robots Rewired . | . . . Allies Hacked . | . . . Hacks Repelled . | . . . Allies | -11 -10 -10 -------- Run | Scr Mat Min Total Allies 3 | . . 3 Largest Group 3 | . . 3 Highest-Rated Group 40 | . . 40 Highest-Rated Ally 16 | . . 16 Total Orders . | . . . Ally Attacks 17 | . . 17 Total Damage 140 | . . 140 Kills 4 | . . 4 Allies Corrupted . | . . . Allies Melted . | . . . Intel | -11 -10 -10 ------- Run | Scr Mat Min Robot Analysis Total . | . . . Derelict Logs Recovered . | . . . Drone Launches . | . . . Drone Recoveries . | . . . Exploration | -11 -10 -10 ------------- Run | Scr Mat Min Turns Passed 271 | . 92 179 Spaces Moved 262 | 1 74 187 Core 21 | . . 21 Treads . | . . . Legs 167 | 1 74 92 Wheels 2 | . . 2 Hover . | . . . Flight 72 | . . 72 Fastest Speed 40 | 120 120 40 Average Speed 92 | 120 120 80 Slowest Speed 120 | 120 120 120 Overloaded Moves . | . . . Propulsion Burnouts . | . . . Robots Hopped 5 | . . 5 Cave-ins Triggered . | . . . Exploration Rate (%) 24 | 2 24 47 Regions Visited 2 Branch Regions 1 Pre-discovered Areas . | . . . Known Exits Taken 1 | . 1 . Unknown Exits Taken 1 | 1 . . Scrap Searched . | . . . Spaces Dug . | . . . Terrain Destroyed . | . . . Melee . | . . . Projectile . | . . . AOE . | . . . Terrain Rammed . | . . . Walls Destroyed . | . . . Machines Disabled . | . . . Actions | -11 -10 -10 --------- Run | Scr Mat Min Total 281 | . 76 205 Wait 3 | . . 3 Move 251 | . 73 178 Hop 4 | . . 4 Pick Up 3 | . 2 1 Fast Attach 5 | . 1 4 Attach 3 | . . 3 Detach . | . . . Swap 2 | . . 2 Drop 6 | . . 6 Fire 4 | . . 4 Melee . | . . . Ram . | . . . Kick . | . . . Crush . | . . . Escape Stasis . | . . . Rewire . | . . . Trap . | . . . Miscellaneous . | . . . Route ------- -11/Scrapyard -10/Materials (discovered 2 exits: *Min x2) -10/Mines History --------- Turn | Location | Event 1 | -11/Scrapyard | Discovered new exit (range 0) 1 | -11/Scrapyard | Entered Materials 57 | -10/Materials | Identified exit to Mines 93 | -10/Materials | Entered Mines 131 | -10/Mines | Assisted by bots powering up and referring to "LRC-V3" 195 | -10/Mines | Met a Derelict bent on vengeance 196 | -10/Mines | Assembled infested the area 244 | -10/Mines | Core integrity fell below 50% 272 | -10/Mines | Core integrity fell below 20% 272 | -10/Mines | Destroyed by D-53 Grenadier with Mini Grenade Launcher Last Messages --------------- 00217_ Acquired 9 matter. 00236_ Lgt. Assault Rifle destroyed. 00243_ Structural Scanner destroyed. 00243_ System corrupted by crushing effect (+2). 00245_ Flight Unit destroyed. 00246_ Lgt. Assault Rifle destroyed. 00250_ as-15008 destroyed. 00251_ as-65857 destroyed. 00256_ Acquired Wheel. 00260_ Acquired Assault Rifle. 00262_ Acquired Lgt. Assault Rifle. 00265_ R-06 Scavenger collects Lgt. Treads. 00266_ Assault Rifle severed. 00269_ R-06 Scavenger collects Ion Engine. 00271_ Lgt. Ion Engine destroyed. 00271_ Wheel destroyed. 00271_ D-53 Grenadier destroyed. 00271_ Laser Drill disabled. 00272_ The unstable cave ceiling collapses. 00272_ as-23094 destroyed. Map ----- +----------------------------------------------------+ | ##??####### #####???????????????????????????????? | | ?????????## #####???????????????????????????????? | | ?????????## ##??????????????????????????????????? | | ?????????## ##??????????????????????????????????? | | ????####### ##?????###??????????????????????????? | | ????####### ##?????###??????????????????????????? | | ????## ###????# ?????????????######???????? | | ????## ###???## ######???????########??????# | | ????## ###??## ######???????### ###??????# | | ????#### ###??## ### ??????### ##?????## | | ????##### ##??## ### ##???###### ##?????## | | ??????##### ##??## ### ##?####### ##?????## | | ???????##### ####?## ### ####### ###?????## | | ?????????### #####?## ### ##### ########## | | ??????????## ##?## ### #### ########### | | ??????????## ## ##?## ## %" ####### #### | | ??########## ## ##?## ## #### ####### ### | | ??########## ## ##### ## #### ##??## ## | | ##### ## #### ##?### | | ????######## ### ## ### ##?## | | ????####### [# ### #### | | ?????????## ### [ #### | | ?????????## ### ##### #### < | | ??????? ## ##### % | | ???? #### # ## | | ???? ####### # r @ ###### ##### ## | | ???? ####### # = #######% #### ##### | | ??????????### ## ! #######!= ###### | | ??????????######### " d %!%=[% ###??? | | ???????????######## " ############## ###???? | | ?????????????????## """ ####################???? | | ?????????????????## ##????????????#####????? | | ?????????????????## ##?????????????????????? | | ?????????????????###########?????????????????????? | | ?????????????????###########?????????????????????? | | | | | | | | | | | | | | | | | | | | | | | | | | | | | | | +----------------------------------------------------+ Best States ------------- Heat Dissipation 25 Energy Generation 10 Energy Capacity 250 Matter Stores 300 Matter Capacity 300 Sight Range 16 Terrain Scan Density 10 Evasion (%) 62 Item Schematics ----------------- None Robot Schematics ------------------ None Fabricated ------------ Nothing Alien Tech Used ----------------- None Achievements -------------- None Challenges ------------ None Game ------ Seed AssaultMeleeCloak Manual? 0 Play Time 00:07:15 Cumulative 114.2 hours Start 2022.04.29 @ 13:43:55 End 2022.04.29 @ 13:48:09 Sessions 1 Manual Loads 0 Difficulty Rogue Special Mode None Game No. 140 Rogue 139 Adventurer 0 Explorer 1 Win Type - Total 2 Types 2/0/0/0/0/0/0/0/0 Lore% 57 Gallery% 56 Achievement% 46 Wizard Run 0 Options --------- ASCII 1 Keyboard 0 Movement Vi Keybinds 0 Fullscreen 1 Font 18/SmallcapsGlow Map View 76x50 Tactical HUD 1 Map Filters NONE Filters NONE Steam 1 RUN: 999a9929-265a-4c2b-a940-b46a0ab59798